fUST/lending_fUST_20251207
["ID","MTS","AMOUNT","RATE_DAILY","PERIOD"]
[396672835,1765091073535,1469.9596203,5.418e-05,2]
[396672836,1765091073601,1469.9596203,5.418e-05,2]
[396672837,1765091073707,1469.9596203,5.418e-05,2]
[396672838,1765091073788,1180.2522782,5.418e-05,2]
[396672839,1765091073835,289.7073421,5.418e-05,2]
[396672840,1765091080214,500.0,5.418e-05,2]
[396672841,1765091080262,405.57051989,5.418e-05,2]
[396672842,1765091080330,191.08208251,5.418e-05,2]
[396672843,1765091080445,500.0,5.418e-05,2]
[396672844,1765091080501,500.0,5.418e-05,2]
[396672845,1765091080567,500.0,5.418e-05,2]
[396672846,1765091080688,500.0,5.418e-05,2]
[396672847,1765091080794,500.0,5.418e-05,2]
[396672848,1765091080863,500.0,5.418e-05,2]
[396672849,1765091080932,500.0,5.418e-05,2]
[396672850,1765091081011,500.0,5.418e-05,2]
[396672851,1765091081087,500.0,5.418e-05,2]
[396672852,1765091081158,500.0,5.418e-05,2]
[396672853,1765091081219,549.23112116,5.418e-05,2]
[396672854,1765091088676,2437.46772921,5.418e-05,2]
[396672855,1765091088768,626.95120513,5.418e-05,2]
[396672856,1765091088812,1810.51652408,5.418e-05,2]
[396672857,1765091088882,2437.46772921,5.418e-05,2]
[396672858,1765091088951,2437.46772921,5.418e-05,2]
[396672859,1765091089064,2437.46772921,5.418e-05,2]
[396672860,1765091089156,877.09028829,5.418e-05,2]
[396672861,1765091089200,1560.37744092,5.418e-05,2]
[396672862,1765091089312,2437.46772921,5.418e-05,2]
[396672863,1765091089538,2437.46772921,5.418e-05,2]
[396672864,1765091089619,2437.46772921,5.418e-05,2]
[396672865,1765091089729,1127.22937145,5.418e-05,2]
[396672866,1765091089775,1310.23835776,5.418e-05,2]
[396672867,1765091098006,435.49425378,5.418e-05,2]
[396672868,1765091098268,500.0,5.418e-05,2]
[396672869,1765091098331,500.0,5.418e-05,2]
[396672870,1765091098403,500.0,5.418e-05,2]
[396672871,1765091101367,300.0,5.418e-05,2]
[396672872,1765091102854,300.0,5.418e-05,2]
[396672873,1765091106776,1848.18981665,5.418e-05,2]
[396672874,1765091106862,1848.18981665,5.418e-05,2]
[396672875,1765091106967,1848.18981665,5.418e-05,2]
[396672876,1765091107399,1848.18981665,5.418e-05,2]
[396672877,1765091107573,300.0,5.418e-05,2]
[396672878,1765091107820,1707.2507334,5.418e-05,2]
[396672879,1765091107872,140.93908325,5.418e-05,2]
[396672880,1765091108051,1848.18981665,5.418e-05,2]
[396672881,1765091109028,1200.0,5.418e-05,2]
[396672882,1765091109455,300.0,5.418e-05,2]
[396672883,1765091116741,500.0,5.418e-05,2]
[396672884,1765091116796,500.0,5.418e-05,2]
[396672885,1765091116887,500.0,5.418e-05,2]
[396672886,1765091118112,2961.3246764,5.418e-05,2]
[396672887,1765091118249,2961.3246764,5.418e-05,2]
[396672888,1765091118314,2577.3606472,5.418e-05,2]
[396672889,1765091118358,383.9640292,5.418e-05,2]
[396672890,1765091118464,2961.3246764,5.418e-05,2]
[396672891,1765091118542,2961.3246764,5.418e-05,2]
[396672892,1765091118933,2961.3246764,5.418e-05,2]
[396672893,1765091119029,732.0719416,5.418e-05,2]
[396672894,1765091119075,2229.2527348,5.418e-05,2]
[396672895,1765091119230,2961.3246764,5.418e-05,2]
[396672896,1765091133034,1539.42159343,5.418e-05,2]
[396672897,1765091133099,1539.42159343,5.418e-05,2]
[396672898,1765091133195,1539.42159343,5.418e-05,2]
[396672899,1765091154225,191.16780851,5.418e-05,2]
[396672900,1765091154264,311.50957062,5.418e-05,2]
[396672901,1765091154395,500.0,5.418e-05,2]
[396672902,1765091154536,500.0,5.418e-05,2]
[396672903,1765091154588,218.90570405,5.418e-05,2]
[396672904,1765091162725,300.0,5.418e-05,2]
[396672905,1765091163060,300.0,5.418e-05,2]
[396672906,1765091170536,500.0,5.418e-05,2]
[396672907,1765091170599,500.0,5.418e-05,2]
[396672908,1765091170923,500.0,5.418e-05,2]
[396672909,1765091170980,500.0,5.418e-05,2]
[396672910,1765091171043,500.0,5.418e-05,2]
[396672911,1765091171112,500.0,5.418e-05,2]
[396672912,1765091171166,500.0,5.418e-05,2]
[396672913,1765091171228,500.0,5.418e-05,2]
[396672914,1765091171287,500.0,5.418e-05,2]
[396672915,1765091171346,500.0,5.418e-05,2]
[396672916,1765091171409,500.0,5.418e-05,2]
[396672917,1765091171498,500.0,5.418e-05,2]
[396672918,1765091171588,500.0,5.418e-05,2]
[396672919,1765091171649,500.0,5.418e-05,2]
[396672920,1765091171706,500.0,5.418e-05,2]
[396672921,1765091171766,369.59472533,5.418e-05,2]
[396672922,1765091171809,130.40527467,5.418e-05,2]
[396672923,1765091171874,500.0,5.418e-05,2]
[396672924,1765091171938,500.0,5.418e-05,2]
[396672925,1765091172014,500.0,5.418e-05,2]
[396672926,1765091172065,500.0,5.418e-05,2]
[396672927,1765091172124,320.76851935,5.418e-05,2]
[396672928,1765091172189,500.0,5.418e-05,2]
[396672929,1765091172258,500.0,5.418e-05,2]
[396672930,1765091172308,500.0,5.418e-05,2]
[396672931,1765091172380,500.0,5.418e-05,2]
[396672932,1765091172445,500.0,5.418e-05,2]
[396672933,1765091172501,500.0,5.418e-05,2]
[396672934,1765091172581,500.0,5.418e-05,2]
[396672935,1765091172644,500.0,5.418e-05,2]
[396672936,1765091172703,500.0,5.418e-05,2]
[396672937,1765091172762,500.0,5.418e-05,2]
[396672938,1765091172816,500.0,5.418e-05,2]
[396672939,1765091172878,500.0,5.418e-05,2]
[396672940,1765091172958,500.0,5.418e-05,2]
[396672941,1765091173008,500.0,5.418e-05,2]
[396672942,1765091173069,500.0,5.418e-05,2]
[396672943,1765091173131,48.83620598,5.418e-05,2]
[396672948,1765091204085,-248.54493681,5.418e-05,2]
[396672951,1765091239585,-300.0,5.417e-05,2]
[396672952,1765091278720,1200.0,5.417e-05,2]
[396672953,1765091282371,300.0,5.417e-05,2]
[396672954,1765091311882,233.7032747,5.417e-05,2]
[396672955,1765091311940,500.0,5.417e-05,2]
[396672956,1765091311992,500.0,5.417e-05,2]
[396672957,1765091312058,500.0,5.417e-05,2]
[396672958,1765091312121,500.0,5.417e-05,2]
[396672959,1765091312190,500.0,5.417e-05,2]
[396672960,1765091312639,629.92311211,5.417e-05,2]
[396672961,1765091312704,500.0,5.417e-05,2]
[396672962,1765091312760,500.0,5.417e-05,2]
[396672963,1765091312856,500.0,5.417e-05,2]
[396672964,1765091312912,500.0,5.417e-05,2]
[396672965,1765091312989,500.0,5.417e-05,2]
[396672966,1765091313303,500.0,5.417e-05,2]
[396672967,1765091313368,500.0,5.417e-05,2]
[396672968,1765091313434,500.0,5.417e-05,2]
[396672969,1765091313506,500.0,5.417e-05,2]
[396672970,1765091313566,500.0,5.417e-05,2]
[396672971,1765091313622,136.38361319,5.417e-05,2]
[396672972,1765091313665,363.61638681,5.417e-05,2]
[396672973,1765091313735,500.0,5.417e-05,2]
[396672974,1765091313819,500.0,5.417e-05,2]
[396672975,1765091313907,500.0,5.417e-05,2]
[396672976,1765091313982,500.0,5.417e-05,2]
[396672977,1765091314087,448.5846161,5.417e-05,2]
[396672978,1765091314168,500.0,5.417e-05,2]
[396672979,1765091314249,500.0,5.417e-05,2]
[396672980,1765091314311,500.0,5.417e-05,2]
[396672982,1765091342969,500.0,5.417e-05,2]
[396672983,1765091343025,500.0,5.417e-05,2]
[396672984,1765091343082,500.0,5.417e-05,2]
[396672985,1765091343138,500.0,5.417e-05,2]
[396672986,1765091343186,200.0,5.417e-05,2]
[396672987,1765091343246,500.0,5.417e-05,2]
[396672988,1765091343314,500.0,5.417e-05,2]
[396672989,1765091343376,500.0,5.417e-05,2]
[396672990,1765091343451,500.0,5.417e-05,2]
[396672991,1765091343511,500.0,5.417e-05,2]
[396672992,1765091343595,500.0,5.417e-05,2]
[396672993,1765091344327,500.0,5.417e-05,2]
[396672994,1765091344390,500.0,5.417e-05,2]
[396672995,1765091344443,500.0,5.417e-05,2]
[396672996,1765091344496,500.0,5.417e-05,2]
[396672998,1765091407321,300.0,5.417e-05,2]
[396672999,1765091409174,1200.0,5.417e-05,2]
[396673023,1765091431893,-322.0,5.418e-05,2]
[396673026,1765091431907,-678.0,5.418e-05,2]
[396673028,1765091431917,-711.88893216,5.418e-05,2]
[396673030,1765091431926,-300.0,5.418e-05,2]
[396673032,1765091431935,-300.0,5.418e-05,2]
[396673034,1765091431945,-300.0,5.418e-05,2]
[396673036,1765091431954,-300.0,5.418e-05,2]
[396673038,1765091431964,-151.0,5.418e-05,2]
[396673040,1765091431973,-151.0,5.418e-05,2]
[396673042,1765091431983,-226.24605397,5.418e-05,2]
[396673044,1765091431993,-585.03574275,5.418e-05,2]
[396673046,1765091432002,-43907.56926703,5.419e-05,2]
[396673059,1765091438107,-577.03149525,5.419e-05,2]
[396673275,1765091440393,-0.01204915,5.419e-05,2]
[396673277,1765091440405,-3079.99106767,5.419e-05,2]
[396673578,1765091443215,-27.61610409,5.419e-05,2]
[396678838,1765091497895,-300.0,5.418e-05,2]
[396679958,1765091510864,236.65812357,5.418e-05,2]
[396679959,1765091511814,500.0,5.418e-05,2]
[396679960,1765091512830,500.0,5.418e-05,2]
[396679961,1765091513494,500.0,5.418e-05,2]
[396679962,1765091514170,264.85846161,5.418e-05,2]
[396679963,1765091523279,300.0,5.418e-05,2]
[396679964,1765091523433,300.0,5.418e-05,2]
[396679965,1765091578498,1200.0,5.418e-05,2]
[396679966,1765091582671,300.0,5.418e-05,2]
[396679967,1765091608333,800.0,5.309e-05,2]
[396679968,1765091608384,800.0,5.307e-05,2]
[396679969,1765091608786,800.0,5.371e-05,2]
[396679970,1765091608928,800.0,5.319e-05,2]
[396679971,1765091608974,800.0,5.339e-05,2]
[396679972,1765091609020,800.0,5.352e-05,2]
[396679973,1765091609250,800.0,5.225e-05,2]
[396679974,1765091609312,800.0,5.361e-05,2]
[396679975,1765091609368,800.0,5.393e-05,2]
[396679976,1765091609432,700.01,5.284e-05,2]
[396679977,1765091609471,99.99,5.284e-05,2]
[396679978,1765091609540,800.0,5.26e-05,2]
[396679979,1765091609630,800.0,5.262e-05,2]
[396679980,1765091609740,800.0,5.23e-05,2]
[396679981,1765091609804,800.0,5.356e-05,2]
[396679982,1765091609852,864.68493202,5.248e-05,2]
[396679983,1765091609919,-987.54803858,5.419e-05,2]
[396679984,1765091609972,800.0,5.298e-05,2]
[396679985,1765091610051,800.0,5.233e-05,2]
[396679986,1765091610103,800.0,5.267e-05,2]
[396679987,1765091610167,800.0,5.201e-05,2]
[396679988,1765091610232,800.0,5.37e-05,2]
[396679989,1765091611103,-234.93666018,5.419e-05,2]
[396679990,1765091612637,-220.46077197,5.419e-05,2]
[396679991,1765091614782,-377.64704023,5.419e-05,2]
[396679992,1765091616046,600.0,5.245e-05,2]
[396679993,1765091617457,-187.93737386,5.419e-05,2]
[396679994,1765091620104,-185.07562662,5.419e-05,2]
[396679995,1765091622767,-486.29179687,5.419e-05,2]
[396679996,1765091624383,-249.4444737,5.419e-05,2]
[396679997,1765091626830,-378.49379308,5.419e-05,2]
[396679998,1765091626899,500.0,5.418e-05,2]
[396679999,1765091627066,320.62636898,5.418e-05,2]
[396680000,1765091628839,-287.86783038,5.419e-05,2]
[396680001,1765091630576,-151.0,5.419e-05,2]
[396680002,1765091632380,-535.42832318,5.419e-05,2]
[396680003,1765091634510,-384.40162183,5.419e-05,2]
[396680004,1765091636791,-305.55076006,5.419e-05,2]
[396680005,1765091637507,-8055.18618398,5.419e-05,2]
[396680006,1765091638030,-10000.01,5.419e-05,2]
[396680007,1765091638477,-10000.01,5.419e-05,2]
[396680008,1765091638584,-188.49682959,5.419e-05,2]
[396680009,1765091640916,-265.06333982,5.419e-05,2]
[396680010,1765091641695,-10000.01,5.419e-05,2]
[396680011,1765091642165,-10000.01,5.419e-05,2]
[396680012,1765091642338,300.0,5.418e-05,2]
[396680013,1765091642398,-9700.01,5.419e-05,2]
[396680014,1765091642449,-260.83183474,5.419e-05,2]
[396680015,1765091642565,-10000.01,5.419e-05,2]
[396680016,1765091642771,-10000.01,5.419e-05,2]
[396680017,1765091642931,-10000.01,5.419e-05,2]
[396680018,1765091643146,-10000.01,5.419e-05,2]
[396680019,1765091643316,-10000.01,5.419e-05,2]
[396680020,1765091643490,-10000.01,5.419e-05,2]
[396680021,1765091644003,-597.58220101,5.419e-05,2]
[396680022,1765091646054,-156.0,5.419e-05,2]
[396680023,1765091648023,-247.16595522,5.419e-05,2]
[396680024,1765091650646,-10000.01,5.419e-05,2]
[396680025,1765091650791,-10000.01,5.419e-05,2]
[396680026,1765091651092,-223.5257658,5.419e-05,2]
[396680027,1765091700076,-334.11197771,5.418e-05,2]
[396680028,1765091702171,-174.24403677,5.418e-05,2]
[396680029,1765091702197,-126.10862078,5.418e-05,2]
[396680030,1765091703814,-53.26501024,5.418e-05,2]
[396680031,1765091703840,-215.69297906,5.418e-05,2]
[396680032,1765091705588,-219.7554798,5.418e-05,2]
[396680033,1765091705625,-52.31289236,5.418e-05,2]
[396680034,1765091708066,-189.03337398,5.418e-05,2]
[396680035,1765091709631,-152.72,5.417e-05,2]
[396680036,1765091712375,-297.89246289,5.417e-05,2]
[396680037,1765091717000,-192.83436738,5.417e-05,2]
[396680038,1765091718541,-312.26497147,5.417e-05,2]
[396680039,1765091722296,-244.28819826,5.417e-05,2]
[396680040,1765091722325,-42.33760027,5.418e-05,2]
[396680041,1765091723587,-216.31613339,5.418e-05,2]
[396680042,1765091723614,-184.97312584,5.418e-05,2]
[396680043,1765091723637,-82.12914795,5.418e-05,2]
[396680044,1765091726708,-476.56959832,5.418e-05,2]
[396680045,1765091730289,-17.63628163,5.418e-05,2]
[396680046,1765091730313,-280.98237022,5.418e-05,2]
[396680047,1765091731828,-19.01762978,5.418e-05,2]
[396680048,1765091731853,-300.0,5.418e-05,2]
[396680049,1765091731877,-294.37669357,5.418e-05,2]
[396680050,1765091734633,-5.62330643,5.418e-05,2]
[396680051,1765091734658,-151.61955113,5.418e-05,2]
[396680052,1765091737488,-148.38044887,5.418e-05,2]
[396680053,1765091737516,-9.86019146,5.418e-05,2]
[396680054,1765091740495,-290.13980854,5.418e-05,2]
[396680055,1765091740517,-103.90922115,5.419e-05,2]
[396680056,1765091742062,-249.37986527,5.419e-05,2]
[396680057,1765091744854,-161.57926918,5.419e-05,2]
[396680058,1765091747224,-220.61788613,5.419e-05,2]
[396680059,1765091748530,-269.65409042,5.419e-05,2]
[396680060,1765091750190,-261.05428655,5.419e-05,2]
[396680061,1765091754053,-292.39362416,5.419e-05,2]
[396680062,1765091756294,-152.46583277,5.419e-05,2]
[396680063,1765091758668,-129.2301054,5.419e-05,2]
[396680064,1765091758699,-180.40677755,5.419e-05,2]
[396680065,1765091761750,-272.52929848,5.419e-05,2]
[396680066,1765091764461,-233.54778565,5.418e-05,2]
[396680067,1765091765954,-66.45221435,5.418e-05,2]
[396680068,1765091765986,-315.86407414,5.419e-05,2]
[396680069,1765091769398,-337.27672743,5.419e-05,2]
[396680070,1765091772688,-196.80918333,5.419e-05,2]
[396680071,1765091774229,-160.26,5.419e-05,2]
[396680072,1765091775727,-424.663942,5.419e-05,2]
[396680073,1765091777797,-162.90995115,5.419e-05,2]
[396680074,1765091779315,-214.86638172,5.419e-05,2]
[396680075,1765091781506,-179.64573251,5.419e-05,2]
[396680076,1765091784288,-194.61801414,5.419e-05,2]
[396680077,1765091785817,-333.96973815,5.419e-05,2]
[396680078,1765091787960,-474.05053641,5.419e-05,2]
[396680079,1765091790552,-151.21737776,5.419e-05,2]
[396680080,1765091805052,-300.0,5.419e-05,2]
[396680081,1765091807225,-154.09575476,5.419e-05,2]
[396680082,1765091809652,-202.34422436,5.419e-05,2]
[396680083,1765091812347,-279.72248607,5.419e-05,2]
[396680084,1765091814701,-155.76528857,5.419e-05,2]
[396680085,1765091817656,-166.21285512,5.419e-05,2]
[396680086,1765091959099,231.8918958,4.719e-05,2]
[396680087,1765091979973,9768.1181042,5.319e-05,2]
[396680088,1765091980020,10000.01,5.319e-05,2]
[396680089,1765091980066,10000.01,5.319e-05,2]
[396680090,1765092015657,-300.0,5.318e-05,2]
[396680091,1765092015705,-300.0,5.318e-05,2]
[396680092,1765092015752,-300.0,5.318e-05,2]
[396680093,1765092015797,-300.0,5.318e-05,2]
[396680094,1765092015840,-1200.0,5.318e-05,2]
[396680095,1765092032746,2051.41836184,5.318e-05,2]
[396680096,1765092033065,2051.41836184,5.318e-05,2]
[396680097,1765092033739,1097.17327632,5.318e-05,2]
[396680098,1765092033788,954.24508552,5.318e-05,2]
[396680099,1765092035024,2051.41836184,5.318e-05,2]
[396680100,1765092035773,2051.41836184,5.318e-05,2]
[396680101,1765092041378,2051.41836184,5.318e-05,2]
[396680102,1765092042188,2051.41836184,5.318e-05,2]
[396680103,1765092042250,1794.33655264,5.318e-05,2]
[396680104,1765092042299,257.0818092,5.318e-05,2]
[396680105,1765092042510,2051.41836184,5.318e-05,2]
[396680106,1765092042599,2051.41836184,5.318e-05,2]
[396680107,1765092042677,2051.41836184,5.318e-05,2]
[396680108,1765092042856,2051.41836184,5.318e-05,2]
[396680109,1765092043032,1537.25474344,5.318e-05,2]
[396680110,1765092043077,514.1636184,5.318e-05,2]
[396680111,1765092043240,2051.41836184,5.318e-05,2]
[396680112,1765092043430,2051.41836184,5.318e-05,2]
[396680113,1765092043578,2051.41836184,5.318e-05,2]
[396680114,1765092043729,2051.41836184,5.318e-05,2]
[396680115,1765092043880,1280.17293424,5.318e-05,2]
[396680116,1765092043927,771.2454276,5.318e-05,2]
[396680117,1765092046594,500.0,5.318e-05,2]
[396680118,1765092046676,500.0,5.318e-05,2]
[396680119,1765092046756,380.19159929,5.318e-05,2]
[396680120,1765092046928,500.0,5.318e-05,2]
[396680121,1765092047067,500.0,5.318e-05,2]
[396680122,1765092055342,3269.6323727,5.318e-05,2]
[396680123,1765092055405,3269.6323727,5.318e-05,2]
[396680124,1765092055540,3269.6323727,5.318e-05,2]
[396680125,1765092055599,191.1128819,5.318e-05,2]
[396680133,1765092564104,-800.0,5.01e-05,2]
[396680134,1765092564126,-564.80832734,5.055e-05,2]
[396680135,1765092564148,-800.0,5.099e-05,2]
[396680136,1765092564170,-800.0,5.117e-05,2]
[396680137,1765092564192,-800.0,5.126e-05,2]
[396680138,1765092564213,-66.77155984,5.163e-05,2]
[396680192,1765092584151,-733.22844016,5.163e-05,2]
[396680198,1765092597475,206.86885331,4.91e-05,2]
[396680199,1765092604922,-800.0,5.167e-05,2]
[396680200,1765092614978,-168.3522427,5.17e-05,2]
[396680201,1765092615002,-62.54775733,5.17e-05,2]
[396680202,1765092619025,-201.71712585,5.17e-05,2]
[396680203,1765092621261,-37.70403752,5.17e-05,2]
[396680204,1765092621283,-164.96790987,5.17e-05,2]
[396680205,1765092622851,-159.33000003,5.17e-05,2]
[396680206,1765092626293,-73.0992143,5.17e-05,2]
[396680207,1765092626319,-402.1641406,5.177e-05,2]
[396680208,1765092628492,-279.69732835,5.177e-05,2]
[396680219,1765092632166,-118.13853105,5.177e-05,2]
[396680220,1765092632192,-60.02454159,5.233e-05,2]
[396680254,1765092633504,-585.64559814,5.233e-05,2]
[396680255,1765092633514,-800.0,5.24e-05,2]
[396680256,1765092633523,-300.0,5.255e-05,2]
[396680257,1765092633533,-300.0,5.255e-05,2]
[396680258,1765092633542,-1200.0,5.255e-05,2]
[396680259,1765092633552,-414.02279266,5.256e-05,2]
[396680260,1765092633564,-785.97720734,5.256e-05,2]
[396680261,1765092633573,-800.0,5.257e-05,2]
[396680262,1765092633582,-800.0,5.259e-05,2]
[396680263,1765092633592,-800.0,5.273e-05,2]
[396680264,1765092633601,-757.12537875,5.315e-05,2]
[396680265,1765092633611,-757.12537875,5.315e-05,2]
[396680266,1765092633620,-757.12537875,5.315e-05,2]
[396680267,1765092633629,-757.12537875,5.315e-05,2]
[396680268,1765092633639,-196.43422995,5.315e-05,2]
[396680321,1765092638482,-560.6911488,5.315e-05,2]
[396680323,1765092638492,-757.12537875,5.315e-05,2]
[396680325,1765092638502,-757.12537875,5.315e-05,2]
[396680327,1765092638511,-757.12537875,5.315e-05,2]
[396680329,1765092638519,-757.12537875,5.315e-05,2]
[396680331,1765092638529,-757.12537875,5.315e-05,2]
[396680333,1765092638538,-621.36206454,5.315e-05,2]
[396680600,1765092641367,-3e-08,5.315e-05,2]
[396680602,1765092641378,-135.76331418,5.315e-05,2]
[396680604,1765092641387,-364.23668582,5.315e-05,2]
[396681094,1765092646885,-267.987,5.315e-05,2]
[396682352,1765092659985,-124.90169293,5.315e-05,2]
[396682357,1765092660016,-319.27654506,5.315e-05,2]
[396683705,1765092674436,-170.90701744,5.315e-05,2]
[396683706,1765092678410,-266.94181625,5.315e-05,2]
[396683707,1765092678437,-13.96376861,5.315e-05,2]
[396683708,1765092679963,-219.16497994,5.315e-05,2]
[396683709,1765092683973,-31.33698471,5.315e-05,2]
[396683710,1765092683997,-186.32030897,5.317e-05,2]
[396683711,1765092688635,-233.71350141,5.317e-05,2]
[396683712,1765092691762,-158.65517584,5.315e-05,2]
[396683713,1765092719773,-264.46573326,5.315e-05,2]
[396683714,1765092719798,-34.87490738,5.315e-05,2]
[396683715,1765092720977,-328.66932264,5.315e-05,2]
[396683716,1765092722475,300.0,5.314e-05,2]
[396683717,1765092722985,-136.45576998,5.315e-05,2]
[396683718,1765092723010,-139.30426426,5.315e-05,2]
[396683719,1765092725356,-42.28241403,5.315e-05,2]
[396683720,1765092725385,-202.47712566,5.315e-05,2]
[396683721,1765092726972,-157.90039857,5.315e-05,2]
[396683722,1765092729008,-139.62247577,5.315e-05,2]
[396683723,1765092729034,-12.57333203,5.315e-05,2]
[396683724,1765092730935,-210.19076145,5.315e-05,2]
[396683725,1765092732517,-232.35330873,5.315e-05,2]
[396683726,1765092735347,-44.88259779,5.315e-05,2]
[396683727,1765092735377,-350.72220317,5.315e-05,2]
[396683728,1765092737417,-207.22561882,5.315e-05,2]
[396683729,1765092738912,-326.64030813,5.315e-05,2]
[396683730,1765092741459,-195.52,5.315e-05,2]
[396683731,1765092743661,-242.3284504,5.315e-05,2]
[396683732,1765092745689,-229.34694315,5.315e-05,2]
[396683733,1765092748604,-189.66796824,5.315e-05,2]
[396683734,1765092752394,-236.70043206,5.315e-05,2]
[396683735,1765092756250,-185.97267426,5.315e-05,2]
[396683736,1765092758102,-229.14080701,5.315e-05,2]
[396683737,1765092758174,971.75316232,5.314e-05,2]
[396683738,1765092758308,971.75316232,5.314e-05,2]
[396683739,1765092758377,971.75316232,5.314e-05,2]
[396683740,1765092758450,971.75316232,5.314e-05,2]
[396683741,1765092758534,971.75316232,5.314e-05,2]
[396683742,1765092758615,971.75316232,5.314e-05,2]
[396683743,1765092758705,971.75316232,5.314e-05,2]
[396683744,1765092758800,971.75316232,5.314e-05,2]
[396683745,1765092759001,971.75316232,5.314e-05,2]
[396683746,1765092759110,954.23153912,5.314e-05,2]
[396683747,1765092759165,17.5216232,5.314e-05,2]
[396683748,1765092759300,971.75316232,5.314e-05,2]
[396683749,1765092760515,-136.52842011,5.317e-05,2]
[396683750,1765092760544,-36.9170025,5.319e-05,2]
[396683751,1765092762660,500.0,5.314e-05,2]
[396683752,1765092762749,500.0,5.314e-05,2]
[396683753,1765092763481,-273.96310253,5.319e-05,2]
[396683754,1765092765951,341.81998563,5.314e-05,2]
[396683755,1765092766693,-184.26,5.319e-05,2]
[396683756,1765092769507,-342.09960143,5.319e-05,2]
[396683757,1765092772099,-184.05824193,5.319e-05,2]
[396683758,1765092772398,3532.25379404,5.314e-05,2]
[396683759,1765092772463,3532.25379404,5.314e-05,2]
[396683760,1765092772520,604.40764077,5.314e-05,2]
[396683761,1765092772566,2927.84615327,5.314e-05,2]
[396683762,1765092772643,3532.25379404,5.314e-05,2]
[396683763,1765092772730,3532.25379404,5.314e-05,2]
[396683764,1765092772783,7.65625865,5.314e-05,2]
[396683765,1765092772833,3524.59753539,5.314e-05,2]
[396683766,1765092772933,3532.25379404,5.314e-05,2]
[396683767,1765092772997,2943.15867057,5.314e-05,2]
[396683768,1765092773044,589.09512347,5.314e-05,2]
[396683769,1765092773162,3532.25379404,5.314e-05,2]
[396683770,1765092773374,3532.25379404,5.314e-05,2]
[396683771,1765092773589,2346.40728845,5.314e-05,2]
[396683772,1765092773634,1185.84650559,5.314e-05,2]
[396683773,1765092773799,-160.33203176,5.319e-05,2]
[396683774,1765092776400,500.0,5.314e-05,2]
[396683775,1765092776569,500.0,5.314e-05,2]
[396683776,1765092776621,542.31606951,5.314e-05,2]
[396683777,1765092777298,-393.80848457,5.319e-05,2]
[396683778,1765092778714,1200.0,5.318e-05,2]
[396683779,1765092781082,-158.91,5.319e-05,2]
[396683780,1765092782569,300.0,5.318e-05,2]
[396683781,1765092783304,-282.3966438,5.319e-05,2]
[396683782,1765092784874,-272.56739429,5.319e-05,2]
[396683783,1765092787279,171.19901614,5.314e-05,2]
[396683784,1765092787583,-266.49820147,5.319e-05,2]
[396683785,1765092789843,-152.85,5.319e-05,2]
[396683786,1765092790201,2441.86240544,5.314e-05,2]
[396683787,1765092790413,2441.86240544,5.314e-05,2]
[396683788,1765092790731,1902.77010347,5.314e-05,2]
[396683789,1765092790778,539.09230197,5.314e-05,2]
[396683790,1765092790858,2441.86240544,5.314e-05,2]
[396683791,1765092791001,2441.86240544,5.314e-05,2]
[396683792,1765092791223,2441.86240544,5.314e-05,2]
[396683793,1765092793432,-238.41349668,5.319e-05,2]
[396683794,1765092795390,369.87088251,5.314e-05,2]
[396683795,1765092795561,-167.09106483,5.319e-05,2]
[396683797,1765092798539,-500.0,5.319e-05,2]
[396683798,1765092800070,-351.47784065,5.319e-05,2]
[396683799,1765092801626,-151.08,5.319e-05,2]
[396683800,1765092804310,-157.80546858,5.319e-05,2]
[396683801,1765092805862,-166.21,5.319e-05,2]
[396683802,1765092808043,1889.62583067,5.314e-05,2]
[396683803,1765092808355,1889.62583067,5.314e-05,2]
[396683804,1765092808708,1889.62583067,5.314e-05,2]
[396683805,1765092808770,1889.62583067,5.314e-05,2]
[396683806,1765092808841,-186.78206719,5.319e-05,2]
[396683807,1765092809266,1889.62583067,5.314e-05,2]
[396683808,1765092812085,-162.20338691,5.319e-05,2]
[396683809,1765092822604,500.0,4.61e-05,2]
[396683810,1765092829186,51.88084665,5.314e-05,2]
[396683811,1765092829245,420.52561103,5.314e-05,2]
[396683812,1765092830110,-177.3911276,5.319e-05,2]
[396683813,1765092830630,537.39563005,4.61e-05,2]
[396683815,1765092833417,-174.46935936,5.319e-05,2]
[396683816,1765092835763,-267.29514942,5.319e-05,2]